Cogmind - Beta 14 @@@ ROGUE MODE // 2025.01.04 @ 17:55:04 Player: Roboardo Result: Destroyed by H-55 Commando with Assault Rifle Performance ------------- Evolutions (2) 1000 Regions Visited (3) 600 Robots Destroyed (30) 150 Value Destroyed (1117) 1117 Prototype IDs (2) 40 Alien Tech Used (0) 0 Bonus (0) 0 TOTAL SCORE: 2907 Bonus ------- None Cogmind --------- Core Integrity 0/550 Matter 300/300 Energy 99/100 System Corruption 0% Temperature Cool (9) Movement Core (50) Location -8/Materials Parts ------- > --- POWER (1) -------- (None) > --- PROPULSION (4) --- (None) > --- UTILITY (3) ------ (None) > --- WEAPON (3) ------- (None) > --- INVENTORY (5) ---- Light Treads Light Treads Aluminum Leg Aluminum Leg Small Storage Unit Peak State ------------ > --- POWER ------------ (None) > --- PROPULSION ------- Carbon-fiber Leg Improved Carbon-fiber Leg Improved Carbon-fiber Leg > --- UTILITY ---------- Medium Storage Unit Armor Integrity Analyzer Core Shielding > --- WEAPON ----------- Gauss Rifle > --- INVENTORY -------- Light Treads Light Treads Aluminum Leg Aluminum Leg Small Storage Unit [Rating: 21] Favorites ----------- Power Ion Engine Engine Ion Engine Power Core Light Nuclear Core Propulsion Aluminum Leg Leg Aluminum Leg Utility Medium Storage Unit Storage Medium Storage Unit Processor Armor Integrity Analyzer Hackware Hacking Suite Protection Core Shielding Weapon Assault Rifle Energy Gun Medium Laser Ballistic Gun Assault Rifle Build | -11 -10 -9 -8 ------- Run | Yrd Mat Mat Mat Slots Evolved 4 | . . 2 2 Power . | . . . . Propulsion 2 | . . 1 1 Utility 1 | . . . 1 Weapon 1 | . . 1 . Parts Attached 40 | 5 8 12 15 Power 7 | 1 2 3 1 Engine 6 | 1 2 3 . Core 1 | . . . 1 Reactor . | . . . . Propulsion 18 | 1 4 5 8 Treads . | . . . . Leg 18 | 1 4 5 8 Wheel . | . . . . Hover . | . . . . Flight . | . . . . Utility 6 | 1 2 . 3 Device . | . . . . Storage 2 | 1 1 . . Processor 1 | . . . 1 Hackware 1 | . . . 1 Protection 2 | . 1 . 1 Artifact . | . . . . Weapon 9 | 2 . 4 3 Energy Gun 5 | 1 . 3 1 Energy Cannon . | . . . . Ballistic Gun 4 | 1 . 1 2 Ballistic Cannon . | . . . . Launcher . | . . . . Special Weapon . | . . . . Impact Weapon . | . . . . Slashing Weapon . | . . . . Piercing Weapon . | . . . . Special Melee Weapon . | . . . . Unidentified Prototypes . | . . . . Parts Lost 27 | . 2 5 20 Power 5 | . 1 2 2 Propulsion 11 | . 1 1 9 Utility 3 | . . . 3 Weapon 8 | . . 2 6 Highest Loss Streak 12 | . 2 4 12 To Critical Strikes 1 | . . . 1 Average Slot Usage (%) 86 | . 90 93 72 Engine 8 | . 13 10 2 Leg 27 | . 25 30 25 Storage 11 | . 14 11 8 Hackware 2 | . . . 7 Protection 8 | . 7 11 7 Energy Gun 15 | . 14 20 8 Ballistic Gun 11 | . 14 9 10 Peak Build Rating 21 | 5 8 12 21 Average Rating 9 | 4 6 9 14 On Entrance 6 | . 5 7 12 Naked Turns 26 | . . . 26 Heaviest Build 24 | 14 20 24 24 Greatest Support 51 | 10 20 30 51 Greatest Overweight (x) 3 | 1 1 1 3 Average Overweight (x) . | . . . . Largest Inventory Capacity 10 | 8 10 10 10 Average Capacity 9 | 7 9 10 9 Most Carried 10 | 5 10 9 7 Average Carried 6 | 4 6 7 5 Final Capacity 10 | 8 10 10 5 Final Carried 8 | 5 6 8 5 Class Distribution -------------------- 47% | Mutant 24% | Scavenger-Tank 17% | Tank 9% | Scavenger-Mutant Dominant Class ---------------- Mutant | -10/Materials Tank | -9/Materials Scavenger-Tank | -8/Materials Resources | -11 -10 -9 -8 ----------- Run | Yrd Mat Mat Mat Matter Collected 827 | 271 60 182 314 Remotely . | . . . . Salvage Created 1368 | 96 66 501 705 Parts 67 | 2 4 33 28 Haulers Intercepted . | . . . . Recyclers Shooed . | . . . . Parts Field Recycled . | . . . . Retrieved Matter . | . . . . Parts Self-Destructed . | . . . . Prevented . | . . . . Kills | -11 -10 -9 -8 ------- Run | Yrd Mat Mat Mat Combat Hostiles Destroyed 27 | . 3 11 13 Guns 27 | . 3 11 13 Classes Destroyed 9 | 1 2 2 4 Tunneler 1 | . . . 1 Recycler 1 | 1 . . . Operator 1 | . . 1 . Swarmer 5 | . 2 3 . Grunt 14 | . 1 5 8 Duelist 1 | . . . 1 Sentry 4 | . . 3 1 Specialist 2 | . . . 2 Hunter 1 | . . . 1 Best Kill Streak 5 | 1 3 5 3 Combat Bots Only 5 | . 3 5 3 Max Kills in Single Turn 2 | 1 1 2 1 Gunslinging 1 | . . 1 . Exploded . | . . . . Melee . | . . . . Uniques/NPCs Destroyed . | . . . . Combat | -11 -10 -9 -8 -------- Run | Yrd Mat Mat Mat Hostile Shots Fired 284 | . 17 73 194 Missed 87 | . 4 22 61 Damage Taken 3114 | . 258 759 2097 Core 698 | . 12 131 555 Absorbed by Shields . | . . . . Redirected to Shielding 101 | . 2 22 77 Regen/Repaired (Parts) 37 | . . 37 . Core Remaining (%) 87 | 100 95 67 . Volleys Fired 110 | 7 10 26 67 Largest 3 | 2 2 3 3 Hottest 136 | 70 70 136 119 Shots Fired 242 | 14 20 72 136 Gun 242 | 14 20 72 136 Cannon . | . . . . Launcher . | . . . . Special . | . . . . Kinetic 104 | 7 10 17 70 Thermal 101 | 7 10 26 58 Explosive . | . . . . Electromagnetic 37 | . . 29 8 Robot Hit Streak 19 | 1 8 15 19 Robot Miss Streak 3 | 2 2 3 2 Penetration Max 1 | . . . 1 Secondary Targets 2 | . . 1 1 Max Gunslinging Chain 1 | . . 1 1 Shots Hit Robots 165 | 2 16 47 100 Core Hits 65 | 2 6 21 36 Critical Kills 1 | . . . 1 Critical Parts Destroyed . | . . . . Critical Strikes 10 | . . 2 8 Burn 7 | . . 2 5 Destroy 1 | . . . 1 Corrupt 2 | . . . 2 Melee Attacks . | . . . . Impact . | . . . . Slashing . | . . . . Piercing . | . . . . Sneak Attacks . | . . . . Combat Hostiles . | . . . . Follow-up Attacks . | . . . . Damage Inflicted 2409 | 52 204 610 1543 Guns 2392 | 52 204 602 1534 Cannons . | . . . . Explosions . | . . . . Melee . | . . . . Ramming 17 | . . 8 9 Kinetic 1106 | 26 107 86 887 Thermal 932 | 26 97 267 542 Explosive . | . . . . Electromagnetic 354 | . . 249 105 Impact . | . . . . Slashing . | . . . . Piercing . | . . . . Highest Corruption . | . . . . Average Corruption . | . . . . Corruption Purged . | . . . . Corruption Blocked . | . . . . Overload Shots . | . . . . Overflow Damage . | . . . . Projectiles . | . . . . Explosions . | . . . . Melee . | . . . . Knockbacks . | . . . . Impact . | . . . . Kinetic . | . . . . Secondary . | . . . . Self-Inflicted Damage 1 | . . . 1 Shots . | . . . . Rammed 2 | . . . 2 Targets Rammed 8 | . . 3 5 Kicked 6 | . . 3 3 Crushed . | . . . . Highest Temperature 367 | 63 75 341 367 Average Temperature 87 | 31 37 103 94 Received Heat Transfer 1005 | . 63 267 675 Effects 1 | . . . 1 Short Circuit 1 | . . . 1 Siege Activations . | . . . . Robots Corrupted . | . . . . Combat Hostiles . | . . . . Parts Fried . | . . . . Impact Corruptions . | . . . . Robots Melted . | . . . . Combat Hostiles . | . . . . Parts Melted 7 | . . 1 6 Heat Transferred 3145 | 74 296 851 1924 Parts Sabotaged . | . . . . Parts Stolen . | . . . . Parts Stripped . | . . . . Power Chain Reactions . | . . . . Alert | -11 -10 -9 -8 ------- Run | Yrd Mat Mat Mat Peak Influence 404 | 5 118 250 404 Initial 105 | . 3 . 105 Average 126 | 3 31 148 228 Maximum Alert Level 2 | . . 1 2 Low Security (%) 73 | 100 100 71 41 Level 1 26 | . . 28 56 Level 2 . | . . . 1 Level 3 . | . . . . Level 4 . | . . . . Level 5 . | . . . . High Security . | . . . . Max Security . | . . . . Squads Dispatched 3 | . . 1 2 Investigation . | . . . . Extermination . | . . . . Reinforcement 3 | . . 1 2 Assault . | . . . . Garrison . | . . . . Intercept . | . . . . Searches Triggered . | . . . . Construction Impeded . | . . . . Haulers Reinforced . | . . . . Active Scanning Responses . | . . . . Cargo Convoy Interrupts . | . . . . Stealth | -11 -10 -9 -8 --------- Run | Yrd Mat Mat Mat Distress Signals 2 | . . 1 1 Communications Jammed . | . . . . Distress Signals . | . . . . Times Spotted 58 | . 8 19 31 Peak Tracking Total 8 | . 3 5 8 Tactical Retreats 8 | . 1 3 4 Traps | -11 -10 -9 -8 ------- Run | Yrd Mat Mat Mat Traps Triggered 1 | . 1 . . Indirectly . | . . . . Trap Hack Attempts . | . . . . Triggered . | . . . . Disarmed . | . . . . Reprogrammed . | . . . . Reused . | . . . . Traps Extracted . | . . . . Installed . | . . . . Triggered . | . . . . Machines | -11 -10 -9 -8 ---------- Run | Yrd Mat Mat Mat Machines Disabled 2 | . . . 2 Max in Single Turn 1 | . . . 1 Garrison Access 1 | . . . 1 Machines Repaired . | . . . . Machines Dismantled . | . . . . Machines Sabotaged . | . . . . Overloaded Fab Kills . | . . . . Hacking | -11 -10 -9 -8 --------- Run | Yrd Mat Mat Mat Machines Accessed 10 | . 2 6 2 Terminals 6 | . 1 4 1 Fabricators . | . . . . Repair Stations 1 | . . 1 . Recycling Units 2 | . 1 1 . Scanalyzers . | . . . . Garrison Access 1 | . . . 1 Total Hacks 31 | . 8 16 7 Successful 15 | . 7 5 3 Failed 16 | . 1 11 4 Catastrophic 1 | . . . 1 Database Lockouts . | . . . . Manual . | . . . . Terminals 17 | . 2 10 5 Fabricators . | . . . . Repair Stations 3 | . . 3 . Recycling Units 9 | . 6 3 . Scanalyzers . | . . . . Garrison Access 2 | . . . 2 Terminal Hacks 5 | . 2 1 2 Prototype ID Bank 1 | . 1 . . Emergency Access Points 1 | . . . 1 Dispatch Records 1 | . 1 . . Recall Assault 1 | . . . 1 Zone Layout 1 | . . 1 . Fabricator Hacks . | . . . . Repair Station Hacks 2 | . . 2 . Scan Component 1 | . . 1 . Repair 1 | . . 1 . Recycling Unit Hacks 7 | . 5 2 . Recycle Component 3 | . 3 . . Process 1 | . 1 . . Report Inventory 2 | . 1 1 . Retrieve Components 1 | . . 1 . Scanalyzer . | . . . . Garrison Access Hacks 1 | . . . 1 Seal Access 1 | . . . 1 Unauthorized Hacks . | . . . . Terminals . | . . . . Fabricators . | . . . . Repair Stations . | . . . . Recycling Units . | . . . . Scanalyzers . | . . . . Garrison Access . | . . . . Data Cores Recovered . | . . . . Used . | . . . . Hacking Detections 7 | . 1 5 1 Full Trace Events 2 | . 1 1 . Feedback Events . | . . . . Feedback Blocked . | . . . . Robot Schematics Acquired . | . . . . Robots Built . | . . . . Authchips . | . . . . Time . | . . . . Total Robot Build Rating . | . . . . Part Schematics Acquired . | . . . . Parts Built . | . . . . Authchips . | . . . . Time . | . . . . Total Part Build Rating . | . . . . Parts Repaired 1 | . . 1 . Time 26 | . . 26 . Parts Recycled 3 | . 3 . . Recycled Matter 66 | . 66 . . Retrieved Matter . | . . . . Retrieved Components 10 | . . 10 . Parts Scanalyzed . | . . . . Part Schematics Acquired . | . . . . Parts Damaged . | . . . . Bothacking | -11 -10 -9 -8 ------------ Run | Yrd Mat Mat Mat Used RIF Installer . | . . . . Robots Hacked . | . . . . Non-combat . | . . . . Combat . | . . . . Robot Hacks Applied . | . . . . Relay Couplers Released . | . . . . Fabnet Peak Effective % . | . . . . Robots Rewired . | . . . . Allies Hacked . | . . . . Hacks Repelled . | . . . . Allies | -11 -10 -9 -8 -------- Run | Yrd Mat Mat Mat Total Allies . | . . . . Largest Group . | . . . . Highest-Rated Group . | . . . . Highest-Rated Ally . | . . . . Total Orders . | . . . . Ally Attacks . | . . . . Total Damage . | . . . . Kills . | . . . . Allies Corrupted . | . . . . Allies Melted . | . . . . Intel | -11 -10 -9 -8 ------- Run | Yrd Mat Mat Mat Robot Analysis Total . | . . . . Derelict Logs Recovered . | . . . . Drone Launches . | . . . . Drone Recoveries . | . . . . Exploration | -11 -10 -9 -8 ------------- Run | Yrd Mat Mat Mat Turns Passed 1860 | 197 459 682 522 Spaces Moved 929 | 95 203 368 263 Core 61 | 5 . . 56 Treads . | . . . . Legs 868 | 90 203 368 207 Wheels . | . . . . Hover . | . . . . Flight . | . . . . Fastest Speed 50 | 50 120 120 50 Average Speed 123 | 166 128 121 106 Slowest Speed 200 | 190 190 190 200 Overloaded Moves . | . . . . Propulsion Burnouts . | . . . . Robots Hopped . | . . . . Cave-ins Triggered . | . . . . Exploration Rate (%) 29 | 6 41 43 26 Regions Visited 3 Branch Regions . Pre-discovered Areas . | . . . . Known Exits Taken . | . . . . Unknown Exits Taken 3 | 1 1 1 . Scrap Searched . | . . . . Spaces Dug . | . . . . Terrain Destroyed . | . . . . Melee . | . . . . Projectile . | . . . . AOE . | . . . . Terrain Rammed . | . . . . Walls Destroyed . | . . . . Machines Disabled . | . . . . Actions | -11 -10 -9 -8 --------- Run | Yrd Mat Mat Mat Total 1413 | 118 378 543 374 Wait 311 | 7 152 130 22 Move 926 | 94 202 367 263 Hop . | . . . . Pick Up 13 | 5 5 3 . Fast Attach 23 | 5 4 5 9 Attach 10 | . 3 3 4 Detach 1 | . 1 . . Swap 7 | . 1 4 2 Drop 4 | . . 2 2 Fire 110 | 7 10 26 67 Melee . | . . . . Ram 2 | . . . 2 Kick 6 | . . 3 3 Crush . | . . . . Escape Stasis . | . . . . Rewire . | . . . . Trap . | . . . . Miscellaneous . | . . . . Route ------- -11/Scrapyard -10/Materials -9/Materials (discovered 2 exits: *Mat / [*Min]) -8/Materials History --------- Turn | Location | Event 13 | -11/Scrapyard | Discovered new exit (range 14) 198 | -11/Scrapyard | Entered Materials 311 | -10/Materials | Build established: Mutant 638 | -10/Materials | Discovered new exit (range 10) 657 | -10/Materials | Entered another Materials area 657 | -9/Materials | Evolved 2 slots: Propulsion x1, Weapon x1 701 | -9/Materials | Repaired Aluminum Leg 842 | -9/Materials | Discovered new exit (range 3) 1053 | -9/Materials | Build established: Tank 1300 | -9/Materials | Lost 4 parts (1p1n2w) 1321 | -9/Materials | Discovered new exit (range 8) 1339 | -9/Materials | Entered another Materials area 1339 | -8/Materials | Evolved 2 slots: Propulsion x1, Utility x1 1492 | -8/Materials | Lost 3 parts (1p1n1w) 1791 | -8/Materials | Core integrity fell below 50% 1835 | -8/Materials | Released all parts (1) 1853 | -8/Materials | Core integrity fell below 20% 1861 | -8/Materials | Destroyed by H-55 Commando with Assault Rifle Last Messages --------------- Acquired Imp. Carbon-fiber Leg. Acquired 33 matter. Hacking Suite destroyed. Acquired Armor Integrity Analyzer. Slug penetrates Wall. Carbon-fiber Leg destroyed. Slug penetrates L-31 Rogue. L-31 Rogue destroyed. Critical hit (Destroy). Gauss Rifle destroyed. Acquired 8 matter. W-25 Informer sends out distress signal. Kicked W-25 Informer. Kicked G-47 Trooper. Imp. Carbon-fiber Leg destroyed. Slammed into G-47 Trooper. Dropped Med. Storage Unit. Core Shielding destroyed. Released Armor Integrity Analyzer. Penetrated by Slug. Map ----- +----------------------------------------------------+ | ##???????# " #?# """" #??????????? | | #???????#! #?# """" #??????????? | | #???????###########?#!![ """" +??????????? | | #???????????????????#!![ ??????????????? | | #???????????????????#!![ ?????????????? | | ###???????????????????# ????????????? | | ??????????????????????# ????????????? | | ??????????????????????# ##########????????????? | | ?????????????????????? #?????????????????????? | | ??????????????????????## #?????????????????????? | | ???????????????????????# +?????????????????????? | | ???????? ??????????????? #?????????????????????? | | ???????? ??????????????? #?????????????????????? | | ???????? ??????????????# #?????????????????????? | | ???????? ??????????????# #?????????????????????? | | ???????? ??????????????# #?????????????????????? | | ???????? ??????????????# #?????????????????????? | | ????????[??????????????# #?????????????????????? | | ???????# ###########???# #?????????????????????? | | ???????# # #???# #?????????????????????? | | ???????# # #???#a #?????????????????????? | | ?####??# # ! #???# #?????????????????????? | | ?# ??# # #???# #?????????????????????? | | ?#!!! ?# #####/#########g #?????????????????????? | | ?#!!! ?+ g #?????????????????????? | | ##!! # ############ @ #?????????????????????? | | # # #??????????# r T ????????????????? | | # + #??????????# #???????????????? | | # # #??????????# #???????????????? | | ####### #??????????# #???????????????? | | # # """ ?????# #???????????????? | | # ! % / ??# h #???????????????? | | %# # ## ]!! #???????????????? | | %/% ###+#### [ ? [!! #???????????????? | | # #? ???? ? [! #???????????????? | | ## #? ?????#######? #???????????????? | | ?# #?""" ????????????## ] ???????????????? | | ? #?""" ?????????????? !] ??????????????? | | #?""" #????????????? !] ????????????????? | | #? #????????????? ! ???????????????????? | | #+####????##????????????? ?????????????????????? | | ?????????????????????????????????????????????????? | | ?????????????????????????????????????????????????? | | ?????????????????????????????????????????????????? | | ?????????????????????????????????????????????????? | | ?????????????????????????????????????????????????? | | ?????????????????????????????????????????????????? | | ?????????????????????????????????????????????????? | | ?????????????????????????????????????????????????? | | ?????????????????????????????????????????????????? | +----------------------------------------------------+ Best States ------------- Heat Dissipation 31 Energy Generation 14 Energy Capacity 250 Matter Stores 300 Matter Capacity 300 Sight Range 16 Terrain Scan Density 10 Core Shielding 20 Evasion (%) 55 Armor Integrity Analysis 30 Offensive Hacking 10 Item Schematics ----------------- None Robot Schematics ------------------ None Fabricated ------------ Nothing Alien Tech Used ----------------- None Achievements -------------- None Challenges ------------ None Game ------ Seed ColdInsulatedConstruct Manual? 0 Play Time 00:25:28 Cumulative 8.2 hours Start 2025.01.04 @ 17:04:19 End 2025.01.04 @ 17:55:04 Sessions 1 Manual Loads 0 Difficulty Rogue Special Mode None Game No. 6 Rogue 6 Adventurer 0 Explorer 0 Win Type - Total 0 Types 0/0/0/0/0/0/0/0/0 Lore% 6 Gallery% 15 Achievement% 17 Wizard Run 0 Options --------- Layout 1 ASCII 0 Keyboard 0 Movement Numpad Keybinds 0 Fullscreen 1 Font 24/Smallcaps Map View 50x35 Zoom Use 0% Tactical HUD 0 Map Filters NONE Filters NONE Steam 1 RUN: ad79e2a9-9781-4f89-a52b-c2b1570e7d66